fUSD/lending_fUSD_20260612
["ID","MTS","AMOUNT","RATE_DAILY","PERIOD"]
[424911874,1781267445000,-531.04204032,0.00022407,2]
[424911880,1781267445000,-932.0,0.00022409,7]
[424911876,1781267445000,-531.04204031,0.00022407,2]
[424911878,1781267445000,-531.04204031,0.00022407,2]
[424911882,1781267445000,-5423.21126752,0.000225,2]
[424911888,1781267445000,-269.04069097,0.000225,2]
[424911890,1781267445000,-200.0,0.000225,10]
[424911892,1781267445000,-200.99797,0.000225,2]
[424911898,1781267445000,-168.44,0.00022603,2]
[424911845,1781267445000,-602.0,0.00022191,2]
[424911886,1781267445000,-164.73,0.000225,2]
[424911841,1781267445000,-151.0,0.00022183,2]
[424911785,1781267445000,-450.0,0.00022,2]
[424911843,1781267445000,-151.91712755,0.00022183,2]
[424911894,1781267445000,-3671.19303059,0.000226,2]
[424911787,1781267445000,-213.05101548,0.00022,2]
[424911795,1781267445000,-2038.0,0.00022,2]
[424911793,1781267445000,-187.0,0.00022,2]
[424911789,1781267445000,-297.0,0.00022,2]
[424911791,1781267445000,-395.0,0.00022,2]
[424911797,1781267445000,-504.0,0.00022,5]
[424911800,1781267445000,-336.0,0.00022,2]
[424911811,1781267445000,-837.99,0.00022,2]
[424911816,1781267445000,-350.0,0.00022023,2]
[424911818,1781267445000,-350.0,0.00022081,2]
[424911813,1781267445000,-347.0,0.00022,2]
[424911802,1781267445000,-878.0,0.00022,2]
[424911808,1781267445000,-270.0,0.00022,2]
[424911820,1781267445000,-225.18697532,0.00022181,2]
[424911804,1781267445000,-151.0,0.00022,2]
[424911806,1781267445000,-1194.0,0.00022,2]
[424911822,1781267445000,-599.60298507,0.00022182,2]
[424911824,1781267445000,-151.0,0.00022182,2]
[424911826,1781267445000,-747.80937859,0.00022182,2]
[424911828,1781267445000,-314.1896268,0.00022183,2]
[424911830,1781267445000,-151.94035637,0.00022183,2]
[424911834,1781267445000,-251.11897888,0.00022183,2]
[424911832,1781267445000,-2494.55939288,0.00022183,2]
[424911837,1781267445000,-251.11897888,0.00022183,2]
[424911839,1781267445000,-209.40437684,0.00022183,2]
[424911901,1781267445000,-521.2,0.0002266,7]
[424911868,1781267445000,-206.0,0.00022321,2]
[424911903,1781267445000,-913.63310323,0.00022665,2]
[424911964,1781267445000,-200.99797,0.000231,2]
[424911971,1781267445000,-151.94035643,0.00023279,2]
[424911973,1781267445000,-2682.57183977,0.00023279,2]
[424911969,1781267445000,-314.1896268,0.00023279,2]
[424911986,1781267445000,-285.0,0.00023353,2]
[424911977,1781267445000,-151.0,0.00023279,2]
[424911984,1781267445000,-1931.37,0.00023346,7]
[424911975,1781267445000,-270.0455652,0.00023279,2]
[424911979,1781267445000,-225.18697532,0.00023279,2]
[424911982,1781267445000,-200.99798,0.000233,2]
[424911988,1781267445000,-206.49384292,0.00023422,7]
[424911992,1781267445000,-1175.47375679,0.000235,2]
[424911998,1781267445000,-150.0,0.00023589,2]
[424911994,1781267445000,-200.99798,0.000235,2]
[424911996,1781267445000,-300.40395902,0.0002355,2]
[424912000,1781267445000,-150.0,0.00023589,2]
[424912009,1781267445000,-150.0,0.00023589,2]
[424912011,1781267445000,-150.0,0.00023589,2]
[424912005,1781267445000,-150.0,0.00023589,2]
[424912002,1781267445000,-150.0,0.00023589,2]
[424912007,1781267445000,-150.0,0.00023589,2]
[424912013,1781267445000,-150.0,0.00023589,2]
[424912017,1781267445000,-314.1896268,0.00023827,2]
[424912015,1781267445000,-162.89,0.00023814,2]
[424911905,1781267445000,-200.99798,0.000227,2]
[424911967,1781267445000,-373.97700062,0.000232,2]
[424911963,1781267445000,-150.0,0.00023014,2]
[424911990,1781267445000,-206.49384293,0.00023422,14]
[424911949,1781267445000,-504.0,0.00023,6]
[424911907,1781267445000,-532.88591238,0.0002271,2]
[424911951,1781267445000,-336.0,0.00023,2]
[424911915,1781267445000,-234.72796915,0.00022731,2]
[424911911,1781267445000,-151.94035637,0.00022731,2]
[424911913,1781267445000,-2586.85809042,0.00022731,2]
[424911909,1781267445000,-314.1896268,0.00022731,2]
[424911917,1781267445000,-260.4103811,0.00022731,2]
[424911926,1781267445000,-206.49384292,0.0002274,7]
[424911924,1781267445000,-4293.21052713,0.00022735,2]
[424911922,1781267445000,-217.15233878,0.00022731,2]
[424911936,1781267445000,-1000.0,0.00023,14]
[424911932,1781267445000,-200.99798,0.000229,2]
[424911919,1781267445000,-151.0,0.00022731,2]
[424911939,1781267445000,-1979.95626,0.00023,2]
[424911959,1781267445000,-270.0,0.00023,2]
[424911930,1781267445000,-21934.39828207,0.00022838,2]
[424911947,1781267445000,-2038.0,0.00023,2]
[424911956,1781267445000,-1194.0,0.00023,2]
[424911953,1781267445000,-878.0,0.00023,2]
[424911945,1781267445000,-187.0,0.00023,2]
[424911954,1781267445000,-151.0,0.00023,2]
[424911943,1781267445000,-395.0,0.00023,2]
[424911941,1781267445000,-297.0,0.00023,2]
[424911928,1781267445000,-206.49384293,0.0002274,14]
[424911934,1781267445000,-2000.0,0.00022987,7]
[424911961,1781267445000,-347.0,0.00023,2]
[424912064,1781267446000,-270.0,0.00024,2]
[424912073,1781267446000,-206.49384293,0.00024104,14]
[424912066,1781267446000,-347.0,0.00024,2]
[424912069,1781267446000,-700.0,0.00024008,2]
[424912062,1781267446000,-1194.0,0.00024,2]
[424912071,1781267446000,-206.49384292,0.00024104,7]
[424912079,1781267446000,-977.19,0.00024209,2]
[424912077,1781267446000,-150.0,0.00024164,2]
[424912082,1781267446000,-3768.33877166,0.0002421,2]
[424912084,1781267446000,-500.0,0.00024213,14]
[424912086,1781267446000,-350.0,0.00024241,2]
[424912055,1781267446000,-336.0,0.00024,2]
[424912088,1781267446000,-350.0,0.00024262,2]
[424912075,1781267446000,-334.34,0.0002411,2]
[424912059,1781267446000,-151.0,0.00024,2]
[424912021,1781267446000,-208.40150218,0.00023827,2]
[424912041,1781267446000,-500.0,0.00024,2]
[424912090,1781267446000,-1305.7,0.00024324,2]
[424912019,1781267446000,-2781.82699784,0.00023827,2]
[424912026,1781267446000,-233.5188934,0.00023827,2]
[424912028,1781267446000,-1000.0,0.00023899,2]
[424912024,1781267446000,-152.79184237,0.00023827,2]
[424912030,1781267446000,-10653.88005277,0.00024,14]
[424912034,1781267446000,-1041.28768269,0.00024,2]
[424912032,1781267446000,-3600.0,0.00024,2]
[424912037,1781267446000,-1259.09199984,0.00024,2]
[424912039,1781267446000,-1979.95626,0.00024,2]
[424912043,1781267446000,-297.0,0.00024,2]
[424912046,1781267446000,-187.0,0.00024,2]
[424912048,1781267446000,-395.0,0.00024,2]
[424912053,1781267446000,-504.0,0.00024,7]
[424912051,1781267446000,-2038.0,0.00024,2]
[424912057,1781267446000,-878.0,0.00024,2]
[424912095,1781267446000,-382.0,0.00024339,2]
[424912130,1781267446000,-621.78829552,0.00024921,2]
[424912097,1781267446000,-1227.0,0.00024339,2]
[424912141,1781267446000,-497.31,0.00024975,2]
[424912140,1781267446000,-251.11897888,0.00024923,2]
[424912152,1781267446000,-977.19,0.00024999,2]
[424912154,1781267446000,-977.19,0.00024999,2]
[424912150,1781267446000,-977.19,0.00024999,2]
[424912148,1781267446000,-1076.83830854,0.00024999,10]
[424912146,1781267446000,-151.0,0.00024997,7]
[424912142,1781267446000,-9999.99,0.0002498,2]
[424912157,1781267446000,-977.19,0.00024999,2]
[424912159,1781267446000,-977.19,0.00024999,2]
[424912093,1781267446000,-1275.0,0.00024339,2]
[424912163,1781267446000,-152.46650889,0.00025,2]
[424912165,1781267446000,-7252.36522364,0.00025,2]
[424912167,1781267446000,-1240733.86084797,0.00025,2]
[424912144,1781267446000,-151.0,0.00024997,7]
[424912139,1781267446000,-2991.49051684,0.00024923,2]
[424912161,1781267446000,-977.19,0.00024999,2]
[424912137,1781267446000,-314.1896268,0.00024923,2]
[424912135,1781267446000,-775.4783256,0.00024921,2]
[424912099,1781267446000,-314.1896268,0.00024375,2]
[424912108,1781267446000,-350.0,0.00024498,2]
[424912101,1781267446000,-2884.75459676,0.00024375,2]
[424912111,1781267446000,-3009.32,0.00024658,2]
[424912113,1781267446000,-1000.0,0.00024658,2]
[424912106,1781267446000,-9590.30759836,0.00024407,2]
[424912104,1781267446000,-242.15909246,0.00024375,2]
[424912126,1781267446000,-730.07982513,0.000249,2]
[424912115,1781267446000,-188.13374368,0.00024658,2]
[424912132,1781267446000,-151.0,0.00024921,2]
[424912117,1781267446000,-837.99,0.00024734,7]
[424912119,1781267446000,-21934.39828207,0.00024859,2]
[424912122,1781267446000,-10309.4438,0.000249,2]
[424912128,1781267446000,-250.0,0.000249,7]
[424912124,1781267446000,-7200.0,0.000249,9]
[424912430,1781267448000,-150.0,0.00025,2]
[424912427,1781267448000,-150.0,0.00025,2]
[424912434,1781267448000,-150.0,0.00025,2]
[424912432,1781267448000,-150.0,0.00025,2]
[424912437,1781267448000,-150.0,0.00025,2]
[424912445,1781267448000,-1133.20908811,0.00025,2]
[424912439,1781267448000,-150.0,0.00025,2]
[424912441,1781267448000,-150.0,0.00025,2]
[424912447,1781267448000,-211.08356679,0.00025,2]
[424912414,1781267448000,-473.32,0.000221,7]
[424912443,1781267448000,-174.49,0.00025,2]
[424912416,1781267448000,-473.32,0.000235,7]
[424912383,1781267448000,-535.41792625,0.00025,2]
[424912425,1781267448000,-150.0,0.00025,2]
[424912423,1781267448000,-150.0,0.00025,2]
[424912418,1781267448000,-191476.92953389,0.00025,2]
[424912396,1781267448000,-4589.61695683,0.00025,2]
[424912393,1781267448000,-1718.32,0.00025,2]
[424912388,1781267448000,-509.02382319,0.00025,2]
[424912390,1781267448000,-1170.0,0.00025,2]
[424912375,1781267448000,-970.11232388,0.00025,2]
[424912372,1781267448000,-1549.28015456,0.00025,2]
[424912386,1781267448000,-2903.13387152,0.00025,2]
[424912377,1781267448000,-760.11851838,0.00025,2]
[424912449,1781267448000,-1815.80551999,0.00025,2]
[424912421,1781267448000,-150.0,0.00025,2]
[424912451,1781267448000,-540.0,0.00025,2]
[424912380,1781267448000,-635.1,0.00025,2]
[424912458,1781267448000,-2238.54870703,0.00025,2]
[424912454,1781267448000,-621.35086386,0.00025,2]
[424912500,1781267448000,-151.0,0.00025,2]
[424912502,1781267448000,-151.0,0.00025,2]
[424912514,1781267448000,-417.9643113,0.00025,2]
[424912512,1781267448000,-404.615593,0.00025,2]
[424912498,1781267448000,-878.67172888,0.00025,2]
[424912505,1781267448000,-404.615593,0.00025,2]
[424912507,1781267448000,-1202.98301,0.00025,2]
[424912496,1781267448000,-210.561555,0.00025,2]
[424912494,1781267448000,-210.561555,0.00025,2]
[424912492,1781267448000,-210.561555,0.00025,2]
[424912489,1781267448000,-210.561555,0.00025,2]
[424912487,1781267448000,-345.3996865,0.00025,2]
[424912510,1781267448000,-282.859357,0.00025,2]
[424912483,1781267448000,-2038.59822993,0.00025,2]
[424912485,1781267448000,-504.0,0.00025,8]
[424912462,1781267448000,-42370.23403727,0.00025,2]
[424912460,1781267448000,-170.21691894,0.00025,2]
[424912472,1781267448000,-606.701702,0.00025,2]
[424912467,1781267448000,-606.701702,0.00025,2]
[424912465,1781267448000,-151.0,0.00025,2]
[424912456,1781267448000,-3096.00911863,0.00025,2]
[424912476,1781267448000,-304.64571876,0.00025,2]
[424912477,1781267448000,-167.0,0.00025,7]
[424912473,1781267448000,-606.701702,0.00025,2]
[424912479,1781267448000,-194.0,0.00025,2]
[424912480,1781267448000,-399.0,0.00025,2]
[424912469,1781267448000,-606.701702,0.00025,2]
[424912645,1781267449000,-182.33,0.00025,2]
[424912646,1781267449000,-182.33,0.00025,2]
[424912614,1781267449000,-595.85768052,0.00025,2]
[424912611,1781267449000,-12.51365233,0.00025,2]
[424912609,1781267449000,-1202.98301,0.00025,2]
[424912607,1781267449000,-404.615593,0.00025,2]
[424912597,1781267449000,-78.76869146,0.00025,2]
[424912603,1781267449000,-404.75,0.00025,2]
[424912600,1781267449000,-652.08200092,0.00025,2]
[424912595,1781267449000,-154.0,0.00025,2]
[424912593,1781267449000,-785.0186987,0.00025,2]
[424912594,1781267449000,-404.615593,0.00025,2]
[424912605,1781267449000,-67.38231762,0.00025,2]
[424912648,1781267449000,-182.33,0.00025,2]
[424912656,1781267449000,-652.97832212,0.00025,2]
[424912647,1781267449000,-182.33,0.00025,2]
[424912660,1781267449000,-57.19407658,0.00025,2]
[424912653,1781267449000,-27.62132929,0.00025,2]
[424912643,1781267449000,-182.33,0.00025,2]
[424912654,1781267449000,-311.98467859,0.00025,2]
[424912652,1781267449000,-182.33,0.00025,2]
[424912650,1781267449000,-182.33,0.00025,2]
[424912658,1781267449000,-992.58433,0.00025,2]
[424912649,1781267449000,-182.33,0.00025,2]
[424912639,1781267449000,-279.67017079,0.00025,2]
[424912641,1781267449000,-182.33,0.00025,2]
[424912634,1781267449000,-585.62866715,0.00025,2]
[424912637,1781267449000,-157.80794,0.00025,2]
[424912651,1781267449000,-182.33,0.00025,2]
[424912738,1781267450000,-800.0,0.00025015,9]
[424912688,1781267450000,-557.01529994,0.00025,2]
[424912685,1781267450000,-294.46470006,0.00025,2]
[424912683,1781267450000,-200.0,0.00023486,2]
[424912726,1781267450000,-435.56903006,0.00025,2]
[424912731,1781267450000,-800.0,0.00025015,9]
[424912733,1781267450000,-800.0,0.00025015,9]
[424912728,1781267450000,-992.58433,0.00025,2]
[424912735,1781267450000,-800.0,0.00025015,9]
[424912740,1781267450000,-800.0,0.00025015,9]
[424912742,1781267450000,-800.0,0.00025015,9]
[424912751,1781267450000,-800.0,0.00025015,9]
[424912772,1781267450000,-685.62,0.00025019,7]
[424912763,1781267450000,-800.0,0.00025015,9]
[424912761,1781267450000,-800.0,0.00025015,9]
[424912765,1781267450000,-800.0,0.00025015,9]
[424912756,1781267450000,-800.0,0.00025015,9]
[424912767,1781267450000,-1202.18566268,0.00025019,7]
[424912749,1781267450000,-800.0,0.00025015,9]
[424912744,1781267450000,-800.0,0.00025015,9]
[424912746,1781267450000,-800.0,0.00025015,9]
[424912754,1781267450000,-800.0,0.00025015,9]
[424912758,1781267450000,-800.0,0.00025015,9]
[424912836,1781267451000,-255.89260768,0.00025397,2]
[424912841,1781267451000,-314.1896268,0.00025471,2]
[424912843,1781267451000,-260.4103811,0.00025471,2]
[424912846,1781267451000,-265.9,0.000255,2]
[424912838,1781267451000,-473.32,0.000254,7]
[424912834,1781267451000,-150.0,0.00025373,2]
[424912832,1781267451000,-564.0,0.00025235,2]
[424912830,1781267451000,-43.56433732,0.00025019,7]
[424912847,1781267451000,-411.11243243,0.00025786,2]
[424912859,1781267451000,-238.82,0.00026027,7]
[424912853,1781267451000,-4143.44756757,0.00025786,2]
[424912852,1781267451000,-780.72180328,0.000227,7]
[424912857,1781267451000,-270.0455652,0.00026019,2]
[424912858,1781267451000,-188.13374368,0.00026027,2]
[424912855,1781267451000,-504.0,0.00026,9]
[424912856,1781267451000,-314.1896268,0.00026019,2]
[424912854,1781267451000,-550.0,0.00026,2]
[424912860,1781267451000,-922.18731725,0.0002604,2]
[424912861,1781267451000,-1343.0,0.0002604,2]
[424912851,1781267451000,-73.27819672,0.000227,7]
[424912863,1781267534000,-1549.28015456,9.687e-05,2]
[424912864,1781267555000,-970.11232388,9.686e-05,3]
[424912865,1781267575000,-106.72598466,9.686e-05,3]
[424912866,1781267628000,-187.39084204,9.487e-05,2]
[424912867,1781267681000,-1500.56131773,8.887e-05,2]
[424912868,1781267734000,-715.26285634,8.887e-05,2]
[424912869,1781267788000,-855.39000868,8.887e-05,2]
[424912870,1781267841000,-321.58850575,8.887e-05,2]
[424912871,1781267871000,200.0,9.101e-05,7]
[424912872,1781267895000,-384.59091268,8.887e-05,2]
[424912874,1781267948000,-300.0,8.963e-05,2]
[424912875,1781268163000,258.99881826,8.456e-05,2]
[424912876,1781268164000,669.55118174,8.456e-05,2]
[424912877,1781268167000,2395.5,8.456e-05,2]
[424912878,1781268192000,-215.4571997,8.693e-05,2]
[424912879,1781268245000,-250.0,8.717e-05,2]
[424912882,1781268298000,-300.0,8.729e-05,2]
[424912883,1781268352000,-454.0,8.741e-05,2]
[424912884,1781268373000,-459.0,8.741e-05,2]
[424912885,1781268393000,-213.34053152,8.741e-05,2]
[424912886,1781268446000,-150.0,8.741e-05,2]
[424912892,1781268447000,-746.75533619,8.769e-05,2]
[424912890,1781268447000,-543.04044217,8.759e-05,2]
[424912891,1781268447000,-5535.20184583,8.769e-05,2]
[424912887,1781268447000,-500.0,8.745e-05,2]
[424912889,1781268447000,-500.0,8.759e-05,2]
[424912888,1781268447000,-390.97377585,8.748e-05,2]
[424912893,1781268448000,-3018.28842088,8.769e-05,2]
[424912894,1781268471000,200.0,8.346e-05,2]
[424912896,1781268473000,131.99561968,8.346e-05,2]
[424912895,1781268473000,68.00438032,8.346e-05,2]
[424912897,1781268500000,-300.0,8.768e-05,2]
[424912900,1781268523000,-500.0,8.768e-05,2]
[424912901,1781268523000,-500.0,8.768e-05,2]
[424912902,1781268523000,-500.0,8.768e-05,2]
[424912898,1781268523000,-150.0,8.768e-05,2]
[424912899,1781268523000,-500.0,8.768e-05,2]
[424912904,1781268523000,-500.0,8.768e-05,2]
[424912909,1781268523000,-500.0,8.768e-05,2]
[424912905,1781268523000,-257.53656206,8.768e-05,2]
[424912906,1781268523000,-242.46343794,8.768e-05,2]
[424912907,1781268523000,-500.0,8.768e-05,2]
[424912910,1781268523000,-500.0,8.768e-05,2]
[424912908,1781268523000,-500.0,8.768e-05,2]
[424912903,1781268523000,-500.0,8.768e-05,2]
[424912913,1781268524000,-165.07312412,8.768e-05,2]
[424912912,1781268524000,-500.0,8.768e-05,2]
[424912911,1781268524000,-500.0,8.768e-05,2]
[424912914,1781268553000,-334.92687588,8.768e-05,2]
[424912915,1781268554000,-500.0,8.768e-05,2]
[424912917,1781268554000,-500.0,8.768e-05,2]
[424912916,1781268554000,-500.0,8.768e-05,2]
[424912918,1781268554000,-500.0,8.768e-05,2]
[424912920,1781268554000,-170.15531737,8.768e-05,2]
[424912919,1781268554000,-500.0,8.768e-05,2]
[424912922,1781268554000,-500.0,8.768e-05,2]
[424912924,1781268554000,-500.0,8.768e-05,2]
[424912921,1781268554000,-500.0,8.768e-05,2]
[424912925,1781268554000,-278.11360263,8.768e-05,2]
[424912926,1781268554000,-221.88639737,8.768e-05,2]
[424912927,1781268554000,-500.0,8.768e-05,2]
[424912928,1781268554000,-500.0,8.768e-05,2]
[424912930,1781268554000,-500.0,8.768e-05,2]
[424912929,1781268554000,-500.0,8.768e-05,2]
[424912932,1781268554000,-500.0,8.768e-05,2]
[424912931,1781268554000,-500.0,8.768e-05,2]
[424912933,1781268554000,-500.0,8.768e-05,2]
[424912923,1781268554000,-500.0,8.768e-05,2]
[424912945,1781268555000,-500.0,8.768e-05,2]
[424912944,1781268555000,-500.0,8.768e-05,2]
[424912943,1781268555000,-500.0,8.768e-05,2]
[424912942,1781268555000,-500.0,8.768e-05,2]
[424912941,1781268555000,-181.53160301,8.768e-05,2]
[424912940,1781268555000,-500.0,8.768e-05,2]
[424912935,1781268555000,-500.0,8.768e-05,2]
[424912938,1781268555000,-500.0,8.768e-05,2]
[424912937,1781268555000,-500.0,8.768e-05,2]
[424912936,1781268555000,-500.0,8.768e-05,2]
[424912934,1781268555000,-500.0,8.768e-05,2]
[424912946,1781268555000,-500.0,8.768e-05,2]
[424912939,1781268555000,-500.0,8.768e-05,2]
[424912947,1781268555000,-500.0,8.768e-05,2]
[424912958,1781268555000,-500.0,8.768e-05,2]
[424912948,1781268555000,-500.0,8.768e-05,2]
[424912961,1781268555000,-3543.83802454,8.769e-05,2]
[424912962,1781268555000,-2757.65240015,8.769e-05,2]
[424912950,1781268555000,-500.0,8.768e-05,2]
[424912956,1781268555000,-500.0,8.768e-05,2]
[424912959,1781268555000,-250.0,8.769e-05,2]
[424912957,1781268555000,-500.0,8.768e-05,2]
[424912960,1781268555000,-50958.42956796,8.769e-05,2]
[424912952,1781268555000,-500.0,8.768e-05,2]
[424912953,1781268555000,-500.0,8.768e-05,2]
[424912954,1781268555000,-178.57110375,8.768e-05,2]
[424912951,1781268555000,-500.0,8.768e-05,2]
[424912949,1781268555000,-567.01553174,8.768e-05,2]
[424912955,1781268555000,-532.95383617,8.768e-05,2]
[424912963,1781268564000,-40035.3726976,8.769e-05,2]
[424912969,1781268568000,-179.73385892,8.887e-05,2]
[424912964,1781268568000,-174.66488517,8.768e-05,2]
[424912965,1781268568000,-12323.40170685,8.769e-05,2]
[424912968,1781268568000,-150.0,8.835e-05,2]
[424912967,1781268568000,-200.0,8.799e-05,2]
[424912966,1781268568000,-641.19,8.782e-05,2]
[424912970,1781268568000,-2836.97,8.917e-05,2]
[424912971,1781268568000,-150.0,8.923e-05,2]
[424912976,1781268568000,-926.55,9.178e-05,2]
[424912973,1781268568000,-7356.5,8.95e-05,2]
[424912974,1781268568000,-150.0,9.01e-05,2]
[424912975,1781268568000,-196.0,9.098e-05,2]
[424912978,1781268568000,-214.95391337,9.561e-05,2]
[424912977,1781268568000,-160.01,9.269e-05,2]
[424912979,1781268568000,-6822.3702,9.587e-05,2]
[424912980,1781268568000,-1284.517,9.587e-05,2]
[424912981,1781268568000,-1280.35565569,9.587e-05,2]
[424912972,1781268568000,-300.0,8.946e-05,2]
[424912982,1781268573000,-1219.64434431,9.587e-05,2]
[424912983,1781268573000,-300.0,9.589e-05,2]
[424912984,1781268573000,-300.0,9.615e-05,2]
[424912986,1781268573000,-300.0,9.615e-05,2]
[424912985,1781268573000,-250.0,9.615e-05,2]
[424912990,1781268573000,-250.0,9.645e-05,2]
[424912989,1781268573000,-1531.71823942,9.645e-05,2]
[424912988,1781268573000,-800.22348873,9.645e-05,2]
[424912991,1781268573000,-255.0,9.645e-05,2]
[424912993,1781268573000,-172.31009949,9.67e-05,2]
[424912992,1781268573000,-300.0,9.646e-05,2]
[424912987,1781268573000,-500.0,9.615e-05,2]
[424912994,1781268607000,-1830.51397161,9.587e-05,2]
[424912995,1781268608000,-3793.44575648,9.587e-05,2]
[424912996,1781268608000,-2487.64149355,9.587e-05,2]
[424913005,1781268632000,-300.0,9.586e-05,2]
[424913002,1781268632000,-150.0,8.817e-05,2]
[424913003,1781268632000,-250.0,9.177e-05,2]
[424913004,1781268632000,-250.0,9.462e-05,2]
[424913001,1781268632000,-326.82,8.456e-05,2]
[424913007,1781268632000,-1020.54048194,9.587e-05,2]
[424913008,1781268632000,-344.69894631,9.587e-05,2]
[424913006,1781268632000,-2581.93604452,9.587e-05,2]
[424913019,1781268633000,-950.87,9.587e-05,2]
[424913018,1781268633000,-40313.29477002,9.587e-05,2]
[424913017,1781268633000,-10375.99287582,9.587e-05,2]
[424913016,1781268633000,-1083799.51613141,9.587e-05,2]
[424913015,1781268633000,-459.63789176,9.587e-05,2]
[424913013,1781268633000,-29685.3841932,9.587e-05,2]
[424913014,1781268633000,-385.37598275,9.587e-05,2]
[424913039,1781268638000,-641.19,0.00010978,2]
[424913037,1781268638000,-160.01,0.00010813,2]
[424913040,1781268638000,-150.0,0.00010989,2]
[424913044,1781268638000,-3541.22909073,0.00011099,2]
[424913042,1781268638000,-166.66,0.00011041,2]
[424913043,1781268638000,-166.66,0.00011068,2]
[424913047,1781268638000,-166.66,0.00011288,2]
[424913035,1781268638000,-407.0,0.00010544,2]
[424913038,1781268638000,-166.66,0.00010959,2]
[424913036,1781268638000,-433.0,0.0001061,2]
[424913029,1781268638000,-641.19,9.88e-05,2]
[424913030,1781268638000,-3700.0,9.9e-05,3]
[424913033,1781268638000,-1096.64692462,0.0001,2]
[424913041,1781268638000,-150.0,0.00010989,2]
[424913031,1781268638000,-5000.0,0.0001,3]
[424913025,1781268638000,-250.0,9.645e-05,2]
[424913027,1781268638000,-1200.0,9.7e-05,3]
[424913028,1781268638000,-2500.0,9.8e-05,3]
[424913026,1781268638000,-748.64101858,9.669e-05,2]
[424913024,1781268638000,-321971.15146063,9.587e-05,2]
[424913046,1781268638000,-166.66,0.00011178,2]
[424913032,1781268638000,-574.49509357,0.0001,2]
[424913045,1781268638000,-15354.07879753,0.00011099,2]
[424913034,1781268638000,-236.03139935,0.00010084,7]
[424913050,1781268638000,-166.66,0.00011507,2]
[424913049,1781268638000,-3541.2290907,0.00011493,2]
[424913073,1781268638000,-500.0,0.00013458,2]
[424913071,1781268638000,-500.0,0.00013458,2]
[424913075,1781268638000,-984.242,0.00013458,2]
[424913069,1781268638000,-500.0,0.00013458,2]
[424913066,1781268638000,-321.06,0.00013349,2]
[424913065,1781268638000,-15354.07879744,0.00013318,2]
[424913061,1781268638000,-1252.0,0.00012837,2]
[424913076,1781268638000,-500.0,0.00013604,2]
[424913062,1781268638000,-926.55,0.0001285,2]
[424913060,1781268638000,-9291.10332204,0.00012812,2]
[424913067,1781268638000,-500.0,0.00013458,2]
[424913057,1781268638000,-150.0,0.00012335,2]
[424913059,1781268638000,-3520.66980659,0.00012812,2]
[424913052,1781268638000,-736.0,0.00011671,2]
[424913051,1781268638000,-15354.07879744,0.00011529,2]
[424913064,1781268638000,-3541.2290907,0.00013287,2]
[424913054,1781268638000,-2928.26,0.00012199,2]
[424913048,1781268638000,-166.66,0.00011397,2]
[424913056,1781268638000,-254.96217143,0.00012329,2]
[424913055,1781268638000,-175.68,0.00012329,2]
[424913058,1781268638000,-250.0,0.00012667,2]
[424913063,1781268638000,-641.19,0.00013174,2]
[424913053,1781268638000,-641.19,0.00012076,2]
[424913135,1781268639000,-692.17,0.00013698,2]
[424913126,1781268639000,-500.0,0.00013698,2]
[424913122,1781268639000,-500.0,0.00013698,2]
[424913128,1781268639000,-500.0,0.00013698,2]
[424913133,1781268639000,-692.17,0.00013698,2]
[424913123,1781268639000,-500.0,0.00013698,2]
[424913129,1781268639000,-500.0,0.00013698,2]
[424913131,1781268639000,-692.17,0.00013698,2]